Cogmind - Beta 16 @@@ ROGUE MODE // 2026.01.29 @ 22:04:53 Player: PE-P51_RE Result: Destroyed by G4-DR3(z) with Zionite Laser-S Performance ------------- Evolutions (3) 1500 Regions Visited (12) 2400 Robots Destroyed (212) 1060 Value Destroyed (3833) 3833 Prototype IDs (12) 240 Alien Tech Used (0) 0 Bonus (-732) -732 TOTAL SCORE: 8301 Bonus ------- High Alert Combat Kills 36 Follower Combat Kills 1448 Destroyed Z-Imprinter 1000 Friendly Fire -3216 Cogmind --------- Core Integrity 0/700 Matter 248/300 Energy 72/100 System Corruption 0% Temperature Cool (9) Movement Walking (191) Location -7/Deep Caves Parts ------- > --- POWER (1) -------- (None) > --- PROPULSION (3) --- Scrap Exoskeleton > --- UTILITY (6) ------ Armored Scrap Engine Experimental Heat Sink Improved Sensor Array Improved Signal Interpreter Makeshift Terrain Scan Processor > --- WEAPON (3) ------- Zionite Laser-M > --- INVENTORY (5) ---- Light Angular Momentum Engine Makeshift Terrain Scanner Component Analysis Suite Peak State ------------ > --- POWER ------------ Cooled Ion Engine > --- PROPULSION ------- Scrap Exoskeleton > --- UTILITY ---------- Armored Scrap Engine Improved Signal Interpreter Makeshift Terrain Scanner Core Analyzer Advanced Field Recycling Unit > --- WEAPON ----------- Mini Grenade Launcher Shotgun Energy Scrap Construct/C > --- INVENTORY -------- Heavy Ion Engine Light Angular Momentum Engine Light Angular Momentum Engine Improved Sensor Array Component Analysis Suite [Rating: 67] Favorites ----------- Power Cooled Ion Engine Engine Cooled Ion Engine Power Core Light Nuclear Core Propulsion Light Treads Treads Light Treads Leg Constructs Utility Armored Scrap Engine Device Armored Scrap Engine Storage Huge Storage Unit Processor Improved Signal Interpreter Hackware Hacking Suite Weapon Constructs Energy Gun Medium Laser Energy Cannon Advanced Beam Cannon Ballistic Gun Improved Assault Rifle Ballistic Cannon Constructs Launcher Mini Grenade Launcher Impact Weapon Mace Slashing Weapon Mining Claw Build | -11 -10 -10 -9 -9 -9 -7 -7 -7 -7 -7 -7 -7 ------- Run | Yrd Mat Min Mat Sto Rec Fac Was Fac Low Low Zio Dee Slots Evolved 6 | . . . 2 . . 4 . . . . . . Power . | . . . . . . . . . . . . . Propulsion 1 | . . . 1 . . . . . . . . . Utility 4 | . . . . . . 4 . . . . . . Weapon 1 | . . . 1 . . . . . . . . . Parts Attached 70 | . 14 2 7 24 6 5 . . 1 . 7 4 Power 6 | . . 1 . 3 . . . . . . 1 1 Engine 4 | . . . . 2 . . . . . . 1 1 Core 2 | . . 1 . 1 . . . . . . . . Reactor . | . . . . . . . . . . . . . Propulsion 19 | . 5 . 4 8 2 . . . . . . . Treads 19 | . 5 . 4 8 2 . . . . . . . Leg . | . . . . . . . . . . . . . Wheel . | . . . . . . . . . . . . . Hover . | . . . . . . . . . . . . . Flight . | . . . . . . . . . . . . . Utility 22 | . 4 . 2 2 1 5 . . . . 6 2 Device 14 | . 2 . 2 1 1 2 . . . . 4 2 Storage 3 | . 2 . . 1 . . . . . . . . Processor 3 | . . . . . . 1 . . . . 2 . Hackware 2 | . . . . . . 2 . . . . . . Protection . | . . . . . . . . . . . . . Artifact . | . . . . . . . . . . . . . Weapon 23 | . 5 1 1 11 3 . . . 1 . . 1 Energy Gun 6 | . 2 . . 3 . . . . . . . 1 Energy Cannon 2 | . . . . 2 . . . . . . . . Ballistic Gun 12 | . 2 1 1 5 3 . . . . . . . Ballistic Cannon . | . . . . . . . . . . . . . Launcher 1 | . . . . . . . . . 1 . . . Special Weapon . | . . . . . . . . . . . . . Impact Weapon 1 | . . . . 1 . . . . . . . . Slashing Weapon 1 | . 1 . . . . . . . . . . . Piercing Weapon . | . . . . . . . . . . . . . Special Melee Weapon . | . . . . . . . . . . . . . Unidentified Prototypes 9 | . . . . 6 1 . . . . . . 2 Parts Lost 12 | . . . . . . . . . . . 3 9 Power 3 | . . . . . . . . . . . 1 2 Propulsion 2 | . . . . . . . . . . . . 2 Utility 4 | . . . . . . . . . . . 2 2 Weapon 3 | . . . . . . . . . . . . 3 Highest Loss Streak 5 | . . . . . . . . . . . 1 5 To Critical Strikes . | . . . . . . . . . . . . . Average Backups 12 | . 10 17 19 20 18 4 5 5 5 10 4 3 Power 2 | . 1 1 2 3 3 1 1 1 1 3 2 1 Propulsion 3 | . 4 7 6 6 5 . . . . . . . Utility 2 | . 1 2 3 3 4 1 1 1 2 3 1 2 Weapon 3 | . 3 6 6 6 5 2 3 2 2 2 . . Tool/Special . | . . . . . . . . . . . . . Unused Backups 45 | . 5 . 2 5 11 1 . 1 1 9 8 2 Power 7 | . . . . 2 2 . . . . . 2 1 Propulsion 13 | . 2 . . 1 3 . . . . 7 . . Utility 9 | . 3 . 1 . 4 . . . . . . 1 Weapon 15 | . . . 1 2 1 1 . 1 1 2 6 . Tool/Special 1 | . . . . . 1 . . . . . . . Average Slot Usage (%) 80 | . 98 100 93 99 88 62 69 69 69 69 60 67 Engine 8 | . 14 5 . 10 11 7 7 7 7 7 6 6 Core 1 | . . 8 11 . . . . . . . . . Treads 16 | . 27 28 29 32 26 7 . . . 2 1 . Leg 1 | . . . . . . . . . . . 5 7 Flight 1 | . . . . . . . 6 6 7 4 . . Device 13 | . 12 14 11 10 10 13 15 15 15 15 14 16 Storage 6 | . 14 14 11 11 7 . . . . 4 . . Processor 4 | . . . . . . 2 7 7 7 7 15 20 Hackware 2 | . . . . . . 14 15 15 15 9 . . Energy Gun 2 | . 8 14 11 8 . . . . . . . 1 Energy Cannon 6 | . . . . 3 15 . 4 7 7 4 3 . Ballistic Gun 7 | . 16 14 19 14 9 7 7 7 . . . . Ballistic Cannon 1 | . . . . . . 7 2 . . 2 3 5 Launcher 2 | . . . . . . . . . 6 7 7 6 Impact Weapon 1 | . . . . 4 3 . . . . . . . Peak Build Rating 67 | . 10 13 17 24 39 52 62 62 56 61 67 66 Average Rating 37 | . 9 11 15 21 27 49 60 59 55 57 59 62 On Entrance 35 | 6 6 10 13 16 24 39 51 62 56 55 61 66 Avg Prop Armor Cover (%) 8 | . . . . . 8 . . . . . . . Naked Turns . | . . . . . . . . . . . . . Heaviest Build 105 | 14 49 49 53 96 99 20 27 27 27 105 101 22 Greatest Support 72 | 20 40 40 60 72 72 54 54 69 69 69 68 69 Greatest Overweight (x) 2 | . 1 1 1 1 1 . . . . 2 2 . Average Overweight (x) . | . . 1 . . . . . . . . . . Largest Inventory Capacity 25 | . 20 20 20 25 25 25 5 5 5 25 25 5 Average Capacity 14 | . 15 20 20 21 19 5 5 5 5 18 5 5 Most Carried 25 | . 16 18 20 22 25 5 5 5 5 25 16 4 Average Carried 12 | . 10 17 19 20 18 4 5 5 5 10 4 3 Final Capacity 25 | 8 20 20 20 25 5 5 5 5 5 25 5 5 Final Carried 22 | 6 16 18 20 22 5 5 5 5 5 16 4 3 Scrap Engine Consumption 83 | . . . . . 28 5 7 4 2 12 25 . Constructs Created 2 | . . . . . 2 . . . . . . . Constructs Modified 33 | . . . . . 10 1 3 3 . 7 8 1 Class Distribution -------------------- 36% | Construct 30% | Mutant 14% | Hacker-Construct 13% | Gunner Dominant Class ---------------- Mutant | -10/Materials Mutant | -10/Mines Scavenger-Gunner | -9/Materials Mutant | -9/Storage Gunner | -9/Recycling Hacker-Construct | -7/Factory Hacker-Construct | -7/Waste Hacker-Construct | -7/Factory Hacker-Construct | -7/Lower Caves Construct | -7/Lower Caves Construct | -7/Zion Construct | -7/Deep Caves Resources | -11 -10 -10 -9 -9 -9 -7 -7 -7 -7 -7 -7 -7 ----------- Run | Yrd Mat Min Mat Sto Rec Fac Was Fac Low Low Zio Dee Matter Collected 3299 | 200 368 43 163 621 207 66 . . 50 20 1508 53 Remotely . | . . . . . . . . . . . . . Salvage Created 9279 | . 626 241 386 1179 1631 60 145 335 443 1406 2608 219 Parts 570 | . 47 25 21 74 42 4 12 16 27 69 220 13 Haulers Intercepted 6 | . 1 . 1 2 . 1 . 1 . . . . Recyclers Shooed 10 | . 1 . . 5 3 . . 1 . . . . Parts Field Recycled 72 | . . . . . . . . . . . 72 . Retrieved Matter 668 | . . . . . . . . . . . 668 . Parts Self-Destructed 93 | . . . . . . . . . 30 63 . . Prevented . | . . . . . . . . . . . . . Parts Restored . | . . . . . . . . . . . . . Kills | -11 -10 -10 -9 -9 -9 -7 -7 -7 -7 -7 -7 -7 ------- Run | Yrd Mat Min Mat Sto Rec Fac Was Fac Low Low Zio Dee Combat Hostiles Destroyed 86 | . 17 5 6 22 2 . . 2 9 13 5 5 Guns 48 | . 17 5 6 17 1 . . . . . . 2 Cannons 24 | . . . . 5 1 . . 2 2 11 3 . AOE 12 | . . . . . . . . . 7 2 . 3 Classes Destroyed 23 | . 7 1 2 3 1 . 1 . 1 4 2 1 Worker 8 | . 2 2 . 3 . . . 1 . . . . Builder 13 | . 1 1 . 1 10 . . . . . . . Tunneler 1 | . . 1 . . . . . . . . . . Hauler 6 | . 1 . 1 2 . 1 . 1 . . . . Recycler 22 | . 1 1 1 2 16 . . 1 . . . . Operator 2 | . 2 . . . . . . . . . . . Watcher 4 | . . . 2 2 . . . . . . . . Swarmer 33 | . 9 3 3 8 . . . 1 7 2 . . Grunt 23 | . 8 2 . 5 1 . . 1 1 5 . . Brawler 2 | . . . . 1 . . . . . 1 . . Duelist 2 | . . . . 1 . . . . . 1 . . Protector 3 | . . . . 2 . . . . . 1 . . Sentry 12 | . . . 3 5 1 . . . 1 2 . . Programmer 1 | . . . . . . . . . . 1 . . Scrapper 1 | . . . . . 1 . . . . . . . Zionite 98 | . . . . . . . . . . . 98 . Z-Light 4 | . . . . . . . . . . . . 4 Samaritan 3 | . . . . . . . . . 1 2 . . Tinkerer 5 | . . . . . . . . . . 1 4 . Surgeon 1 | . . . . . . . . . . 1 . . Wasp 1 | . . . . . . . 1 . . . . . Thug 3 | . . . . . 1 . . . . 2 . . Savage 1 | . . . . . . . . . . . 1 . Butcher 2 | . . . . . . . . . . 1 1 . Martyr 2 | . . . . . . . 2 . . . . . Marauder 1 | . . . . . . . . . . . 1 . Mutant 3 | . . . . . . . . . . 1 2 . Best Kill Streak 7 | . 4 3 6 6 2 1 . 5 4 6 7 3 Combat Bots Only 6 | . 4 3 5 6 1 . . 2 4 6 2 3 Max Kills in Single Turn 4 | . 1 1 1 2 1 1 1 1 3 2 4 1 Gunslinging 1 | . . . . 1 . . . . . . . . Exploded 3 | . . . . . . . . . 3 2 . 1 Melee . | . . . . . . . . . . . . . Uniques/NPCs Destroyed 1 | . . . . . . . . . . . . 1 Z-Imprinter (-7/Deep Caves) Combat | -11 -10 -10 -9 -9 -9 -7 -7 -7 -7 -7 -7 -7 -------- Run | Yrd Mat Min Mat Sto Rec Fac Was Fac Low Low Zio Dee Hostile Shots Fired 458 | . 80 31 31 62 4 . . . 13 18 138 81 Missed 162 | . 19 11 8 18 2 . . . 4 7 63 30 Hits 296 | . 61 20 23 44 2 . . . 9 11 75 51 Melee 10 | . . . . 1 . . . . . . 9 . Projectile 286 | . 61 20 23 43 2 . . . 9 11 66 51 Critical Strikes 10 | . 1 . . 1 . . . . . 1 7 . Damage Taken 5446 | . 672 219 320 622 54 . . . 130 163 1718 1548 Core 1101 | . 121 44 69 142 . . . . 62 29 383 251 Absorbed by Shields . | . . . . . . . . . . . . . Regen/Repaired (Parts) 1085 | . . . . . 5 . . . . 183 837 60 Core Remaining (%) 60 | 100 . 34 . . 47 . . . . . . . Volleys Fired 714 | . 50 18 26 47 29 4 7 16 36 79 369 33 Largest 3 | . 2 2 3 3 3 1 1 1 1 1 2 2 Hottest 159 | . 70 70 93 159 159 58 58 58 58 91 91 103 Shots Fired 937 | . 100 36 75 124 55 4 7 16 36 79 369 36 Gun 364 | . 100 36 75 98 42 . . . . . . 13 Cannon 351 | . . . . 26 13 4 7 16 32 78 159 16 Launcher 222 | . . . . . . . . . 4 1 210 7 Special . | . . . . . . . . . . . . . Kinetic 389 | . 85 18 49 75 31 4 6 16 32 70 3 . Thermal 303 | . 15 18 26 26 24 . 1 . . 8 156 29 Explosive 222 | . . . . . . . . . 4 1 210 7 Electromagnetic 23 | . . . . 23 . . . . . . . . Robot Hit Streak 29 | . 8 5 15 9 8 5 8 10 16 29 14 2 Robot Miss Streak 9 | . 5 2 5 7 2 1 2 6 4 5 9 4 Penetration Max 2 | . . . . . . . 1 1 1 2 . . Secondary Targets 7 | . . 2 1 4 . . . . . . . . Max Gunslinging Chain 1 | . . 1 1 1 . . . . . . . . Shots Hit Robots 535 | . 67 22 42 81 42 3 6 16 29 71 146 10 Core Hits 432 | . 34 11 20 42 29 1 11 13 25 95 134 17 Critical Kills 4 | . 1 . 1 1 1 . . . . . . . Critical Parts Destroyed 3 | . 1 . . . 2 . . . . . . . Critical Strikes 11 | . 2 . 5 1 3 . . . . . . . Burn 4 | . . . 4 . . . . . . . . . Destroy 4 | . 2 . 1 1 . . . . . . . . Smash 3 | . . . . . 3 . . . . . . . Melee Attacks 67 | . 18 . . 23 26 . . . . . . . Impact 45 | . . . . 19 26 . . . . . . . Slashing 22 | . 18 . . 4 . . . . . . . . Piercing . | . . . . . . . . . . . . . Sneak Attacks 31 | . 8 . . 8 15 . . . . . . . Combat Hostiles . | . . . . . . . . . . . . . Follow-up Attacks . | . . . . . . . . . . . . . Damage Inflicted 16162 | . 1065 282 440 1863 1636 103 281 428 862 3253 5130 819 Guns 2936 | . 646 235 440 1027 382 . . . . . . 206 Cannons 8651 | . . . . 250 185 77 281 428 482 3153 3703 92 Explosions 2428 | . . . . . . . . . 380 100 1427 521 Melee 1844 | . 385 . . 545 914 . . . . . . . Ramming 303 | . 34 47 . 41 155 26 . . . . . . Kinetic 6198 | . 535 70 239 720 355 77 281 428 482 2949 62 . Thermal 5082 | . 111 165 201 250 212 . . . . 204 3641 298 Explosive 2428 | . . . . . . . . . 380 100 1427 521 Electromagnetic 307 | . . . . 307 . . . . . . . . Impact 1316 | . . . . 402 914 . . . . . . . Slashing 528 | . 385 . . 143 . . . . . . . . Piercing . | . . . . . . . . . . . . . Highest Corruption 3 | . . . . . . . . . . . 3 . Average Corruption 2 | . . . . . . . . . . . 2 . Corruption Purged 3 | . . . . . . . . . . . 3 . Corruption Blocked . | . . . . . . . . . . . . . Effects 7 | . . . . . . . . . . . 7 . Message Errors 2 | . . . . . . . . . . . 2 . Matter Fused 2 | . . . . . . . . . . . 2 . Heat Flow Errors 1 | . . . . . . . . . . . 1 . Data Loss (major) 1 | . . . . . . . . . . . 1 . Weapon Failures 1 | . . . . . . . . . . . 1 . Overload Shots . | . . . . . . . . . . . . . Overflow Damage 838 | . 61 . . 169 379 . . . 25 95 88 21 Projectiles 139 | . . . . . 12 . . . 25 95 7 . Explosions 102 | . . . . . . . . . . . 81 21 Melee 597 | . 61 . . 169 367 . . . . . . . Knockbacks 43 | . 1 . . 2 4 . 5 1 5 22 3 . Impact 7 | . 1 . . 2 4 . . . . . . . Kinetic 33 | . . . . . . . 5 1 4 21 2 . Secondary 3 | . . . . . . . . . 1 1 1 . Self-Inflicted Damage 136 | . . . . . . . . . . . 136 . Shots 6 | . . . . . . . . . . . 6 . Rammed 30 | . 8 5 . 5 11 1 . . . . . . Targets Rammed 38 | . 8 7 . 5 17 1 . . . . . . Kicked . | . . . . . . . . . . . . . Crushed 8 | . . 2 . . 6 . . . . . . . Highest Temperature 240 | . 12 22 40 81 93 2 . 2 3 140 163 240 Average Temperature 32 | . 4 6 14 22 40 2 . 2 2 26 37 81 Received Heat Transfer 1395 | . 288 66 72 216 21 . . . . 66 207 459 Siege Activations . | . . . . . . . . . . . . . Martial Activations . | . . . . . . . . . . . . . Shielding Activations . | . . . . . . . . . . . . . Robots Disrupted . | . . . . . . . . . . . . . Combat Hostiles . | . . . . . . . . . . . . . Robots Corrupted 9 | . . . . 3 6 . . . . . . . Combat Hostiles . | . . . . . . . . . . . . . Parts Fried 17 | . . . . 5 12 . . . . . . . Impact Corruptions 20 | . . . . 5 15 . . . . . . . Robots Melted 2 | . . . . . . . . . . . 2 . Combat Hostiles 2 | . . . . . . . . . . . 2 . Parts Melted 34 | . 1 2 3 1 1 . . 1 . 1 22 2 Heat Transferred 11815 | . 261 481 888 444 333 . . . . 518 8632 258 Parts Sabotaged . | . . . . . . . . . . . . . Parts Stolen . | . . . . . . . . . . . . . Parts Stripped . | . . . . . . . . . . . . . Power Chain Reactions . | . . . . . . . . . . . . . Alert | -11 -10 -10 -9 -9 -9 -7 -7 -7 -7 -7 -7 -7 ------- Run | Yrd Mat Min Mat Sto Rec Fac Was Fac Low Low Zio Dee Maximum Alert Level 2 | . . . 1 2 . 1 . 1 . . . . Low Security (%) 85 | . 100 100 90 27 100 . 100 64 . . . . Level 1 5 | . . . 9 19 . 100 . 35 . . . . Level 2 8 | . . . . 52 . . . . . . . . Level 3 . | . . . . . . . . . . . . . Level 4 . | . . . . . . . . . . . . . Level 5 . | . . . . . . . . . . . . . High Security . | . . . . . . . . . . . . . Max Security . | . . . . . . . . . . . . . Peak Influence 622 | . 150 62 214 622 197 365 100 241 . . . . Initial 365 | . . 22 . 59 163 365 100 . . . . . Average 84 | . 51 5 108 325 25 323 21 141 . . . . Influence Increases 4873 | . 472 145 407 1254 508 372 48 290 762 600 15 . Destroy 0b10 Robot/C 2280 | . 340 100 260 620 80 . . 100 380 400 . . Destroy 0b10 Robot/NC 360 | . 35 25 25 70 135 5 . 30 5 15 15 . Destroy Leader 422 | . 82 20 76 160 . 2 . 12 40 30 . . Allied During Kill 966 | . . . 37 292 47 . . 128 322 140 . . Successful Hack 90 | . . . 8 16 48 . . 18 . . . . Select Force Hacks 150 | . . . . . 150 . . . . . . . Disable Machine 150 | . . . . 90 45 15 . . . . . . Destroy Structure 60 | . . . 1 6 3 . 48 2 . . . . Advance Influence 350 | . . . . . . 350 . . . . . . Lose Combat Pursuer 45 | . 15 . . . . . . . 15 15 . . Influence Decreases 4873 | . 415 202 264 976 891 123 335 138 509 872 148 . Entered New Map 855 | . . 35 . 84 258 23 187 . 57 78 133 . Time Decay 3489 | . 415 167 224 622 613 100 89 138 392 714 15 . Lost Ally 379 | . . . 40 120 20 . 59 . 60 80 . . Purge Threat 150 | . . . . 150 . . . . . . . . Squads Dispatched 13 | . 4 . . 6 . 1 . 1 . 1 . . Investigation 3 | . 2 . . 1 . . . . . . . . Extermination . | . . . . . . . . . . . . . Reinforcement 5 | . 2 . . 1 . 1 . 1 . . . . Assault 3 | . . . . 2 . . . . . 1 . . Garrison 2 | . . . . 2 . . . . . . . . Intercept . | . . . . . . . . . . . . . Searches Triggered . | . . . . . . . . . . . . . Construction Impeded . | . . . . . . . . . . . . . Haulers Reinforced 2 | . . . . . . 1 . 1 . . . . Active Scanning Responses . | . . . . . . . . . . . . . Cargo Convoy Interrupts . | . . . . . . . . . . . . . Stealth | -11 -10 -10 -9 -9 -9 -7 -7 -7 -7 -7 -7 -7 --------- Run | Yrd Mat Min Mat Sto Rec Fac Was Fac Low Low Zio Dee Distress Signals 6 | . 2 . 2 2 . . . . . . . . Communications Jammed . | . . . . . . . . . . . . . Distress Signals . | . . . . . . . . . . . . . Times Spotted 253 | . 31 5 18 42 4 . . 2 18 17 107 9 Peak Tracking Total 10 | . 4 2 4 10 4 . . 2 4 9 6 5 Tactical Retreats 8 | . 1 . . . . . . . 1 1 5 . Traps | -11 -10 -10 -9 -9 -9 -7 -7 -7 -7 -7 -7 -7 ------- Run | Yrd Mat Min Mat Sto Rec Fac Was Fac Low Low Zio Dee Traps Triggered 10 | . 3 . 1 4 . 2 . . . . . . Indirectly . | . . . . . . . . . . . . . Trap Hack Attempts . | . . . . . . . . . . . . . Triggered . | . . . . . . . . . . . . . Disarmed 6 | . . . . 6 . . . . . . . . Reprogrammed . | . . . . . . . . . . . . . Reused . | . . . . . . . . . . . . . Traps Extracted . | . . . . . . . . . . . . . Installed . | . . . . . . . . . . . . . Triggered . | . . . . . . . . . . . . . Machines | -11 -10 -10 -9 -9 -9 -7 -7 -7 -7 -7 -7 -7 ---------- Run | Yrd Mat Min Mat Sto Rec Fac Was Fac Low Low Zio Dee Machines Disabled 15 | . . . . 6 3 1 . . . . 5 . Max in Single Turn 2 | . . . . 1 1 1 . . . . 2 . Garrison Access 2 | . . . . 1 . . . 1 . . . . Machines Repaired . | . . . . . . . . . . . . . Machines Dismantled . | . . . . . . . . . . . . . Machines Sabotaged . | . . . . . . . . . . . . . Overloaded Fab Kills . | . . . . . . . . . . . . . Hacking | -11 -10 -10 -9 -9 -9 -7 -7 -7 -7 -7 -7 -7 --------- Run | Yrd Mat Min Mat Sto Rec Fac Was Fac Low Low Zio Dee Machines Accessed 33 | . 4 . 2 9 14 1 . 2 1 . . . Terminals 21 | . 4 . 2 8 6 1 . . . . . . Fabricators . | . . . . . . . . . . . . . Repair Stations . | . . . . . . . . . . . . . Recycling Units 7 | . . . . . 7 . . . . . . . Scanalyzers 1 | . . . . . . . . 1 . . . . Garrison Access 2 | . . . . 1 . . . 1 . . . . Total Hacks 91 | . 8 . 4 28 45 2 . 3 1 . . . Successful 45 | . 2 . 1 14 24 1 . 2 1 . . . Failed 46 | . 6 . 3 14 21 1 . 1 . . . . Catastrophic 5 | . 3 . 1 1 . . . . . . . . Database Lockouts . | . . . . . . . . . . . . . Manual 59 | . 8 . 4 17 26 . . . . . 4 . Terminals 56 | . 8 . 4 22 20 2 . . . . . . Fabricators . | . . . . . . . . . . . . . Repair Stations . | . . . . . . . . . . . . . Recycling Units 23 | . . . . . 23 . . . . . . . Scanalyzers 2 | . . . . . . . . 2 . . . . Garrison Access 7 | . . . . 6 . . . 1 . . . . Terminal Hacks 14 | . 2 . 1 7 2 1 . . 1 . . . Robot Analysis 1 | . 1 . . . . . . . . . . . Open Door 2 | . . . . 1 . . . . 1 . . . Branch Access Points 1 | . . . 1 . . . . . . . . . Alert Level 1 | . . . . 1 . . . . . . . . Unreport Threat 1 | . . . . 1 . . . . . . . . Locate Traps 1 | . . . . . . 1 . . . . . . Disarm Traps 1 | . . . . 1 . . . . . . . . Hauler Manifests 2 | . 1 . . 1 . . . . . . . . Zone Layout 2 | . . . . 2 . . . . . . . . Release Object 2 | . . . . . 2 . . . . . . . Fabricator Hacks . | . . . . . . . . . . . . . Repair Station Hacks . | . . . . . . . . . . . . . Recycling Unit Hacks 5 | . . . . . 5 . . . . . . . Retrieve Components 5 | . . . . . 5 . . . . . . . Scanalyzer 1 | . . . . . . . . 1 . . . . Insert Component 1 | . . . . . . . . 1 . . . . Garrison Access Hacks 2 | . . . . 1 . . . 1 . . . . Seal Access 2 | . . . . 1 . . . 1 . . . . Unauthorized Hacks 23 | . . . . 6 17 . . . . . . . Terminals 18 | . . . . 6 12 . . . . . . . Botnet 12 | . . . . 6 6 . . . . . . . Skim 6 | . . . . . 6 . . . . . . . Fabricators . | . . . . . . . . . . . . . Repair Stations . | . . . . . . . . . . . . . Recycling Units 5 | . . . . . 5 . . . . . . . Tunnel 5 | . . . . . 5 . . . . . . . Scanalyzers . | . . . . . . . . . . . . . Garrison Access . | . . . . . . . . . . . . . Data Cores Recovered 1 | . . . . 1 . . . . . . . . Used . | . . . . . . . . . . . . . Hacking Detections 27 | . 4 . 2 8 11 1 . 1 . . . . Full Trace Events 2 | . . . . . 2 . . . . . . . Feedback Events . | . . . . . . . . . . . . . Feedback Blocked . | . . . . . . . . . . . . . Robot Schematics Acquired . | . . . . . . . . . . . . . Robots Built . | . . . . . . . . . . . . . Authchips . | . . . . . . . . . . . . . Time . | . . . . . . . . . . . . . Total Robot Build Rating . | . . . . . . . . . . . . . Part Schematics Acquired . | . . . . . . . . . . . . . Parts Built . | . . . . . . . . . . . . . Authchips . | . . . . . . . . . . . . . Time . | . . . . . . . . . . . . . Total Part Build Rating . | . . . . . . . . . . . . . Part Studies Acquired . | . . . . . . . . . . . . . Parts Repaired . | . . . . . . . . . . . . . Time . | . . . . . . . . . . . . . Parts Recycled . | . . . . . . . . . . . . . Recycled Matter . | . . . . . . . . . . . . . Retrieved Matter . | . . . . . . . . . . . . . Retrieved Components 11 | . . . . . 11 . . . . . . . Parts Scanalyzed . | . . . . . . . . . . . . . Part Schematics Acquired . | . . . . . . . . . . . . . Parts Damaged . | . . . . . . . . . . . . . Bothacking | -11 -10 -10 -9 -9 -9 -7 -7 -7 -7 -7 -7 -7 ------------ Run | Yrd Mat Min Mat Sto Rec Fac Was Fac Low Low Zio Dee Used RIF Installer . | . . . . . . . . . . . . . Robots Hacked . | . . . . . . . . . . . . . Non-combat . | . . . . . . . . . . . . . Combat . | . . . . . . . . . . . . . Robot Hacks Applied . | . . . . . . . . . . . . . Relay Couplers Released . | . . . . . . . . . . . . . Fabnet Peak Effective % . | . . . . . . . . . . . . . Robots Rewired . | . . . . . . . . . . . . . Allies Hacked . | . . . . . . . . . . . . . Hacks Repelled . | . . . . . . . . . . . . . Allies | -11 -10 -10 -9 -9 -9 -7 -7 -7 -7 -7 -7 -7 -------- Run | Yrd Mat Min Mat Sto Rec Fac Was Fac Low Low Zio Dee Total Allies 37 | . . 3 . 12 . . 19 . . . 3 . Largest Group 19 | . . 3 3 12 5 2 19 12 12 9 6 . Highest-Rated Group 465 | . . 40 40 150 83 15 465 325 325 260 147 . Highest-Rated Ally 35 | . . 16 16 31 31 8 35 31 31 31 31 . Total Orders . | . . . . . . . . . . . . . Ally Attacks 485 | . . . 31 121 38 . 169 13 53 41 19 . Total Damage 8238 | . . . 329 1324 477 . 4024 283 761 615 425 . Kills 61 | . . . 8 15 7 . 7 3 10 8 3 . Allies Corrupted . | . . . . . . . . . . . . . Allies Melted . | . . . . . . . . . . . . . Intel | -11 -10 -10 -9 -9 -9 -7 -7 -7 -7 -7 -7 -7 ------- Run | Yrd Mat Min Mat Sto Rec Fac Was Fac Low Low Zio Dee Active Infowar (turns) 7898 | . . . . . . 67 602 287 923 3270 1926 823 Sensors 6063 | . . . . . . 67 602 287 923 3270 228 686 Terrain 1835 | . . . . . . . . . . . 1698 137 Robot Analysis Total 1 | . 1 . . . . . . . . . . . Derelict Logs Recovered 5 | . . 1 . . . . . . 1 3 . . Drone Launches . | . . . . . . . . . . . . . Drone Recoveries . | . . . . . . . . . . . . . Exploration | -11 -10 -10 -9 -9 -9 -7 -7 -7 -7 -7 -7 -7 ------------- Run | Yrd Mat Min Mat Sto Rec Fac Was Fac Low Low Zio Dee Turns Passed 21813 | . 1539 1711 596 2115 6119 209 602 287 923 3270 3619 823 Spaces Moved 13039 | 1 616 683 275 948 2982 326 693 311 1368 2528 2002 306 Core . | . . . . . . . . . . . . . Treads 6199 | . 607 683 275 948 2557 326 92 8 . 415 288 . Legs 2177 | 1 9 . . . 226 . . . . . 1635 306 Wheels . | . . . . . . . . . . . . . Hover . | . . . . . . . . . . . . . Flight 4663 | . . . . . 199 . 601 303 1368 2113 79 . Fastest Speed 56 | 120 120 240 160 160 56 56 56 56 56 56 120 166 Average Speed 135 | 120 203 240 180 187 177 56 56 56 56 101 130 171 Slowest Speed 288 | 120 240 240 240 240 240 56 56 56 56 288 288 191 Overloaded Moves . | . . . . . . . . . . . . . Propulsion Burnouts . | . . . . . . . . . . . . . Robots Hopped 7 | . . . . . . . . . 1 6 . . Potential Cave-ins . | . . . . . . . . . . . . . Cave-ins Triggered 1 | . . . . . . . . . . . 1 . Exploration Rate (%) 64 | 2 98 99 27 96 99 8 96 9 98 99 72 32 Regions Visited 12 Branch Regions 7 Pre-discovered Areas 7 | . . . . . 6 . . . 1 . . . Known Exits Taken 5 | . . . 1 . . . . 1 1 1 1 . Unknown Exits Taken 5 | 1 1 1 . 1 1 . . . . . . . Scrap Searched 8 | . . 1 . . . . . . 2 3 2 . Spaces Dug 5 | . . . . 3 . . . . . . 2 . Terrain Destroyed 657 | . . . . 3 . . . 1 38 6 561 48 Melee 3 | . . . . 3 . . . . . . . . Projectile 3 | . . . . . . . . . . . . 3 AOE 634 | . . . . . . . . . 28 . 561 45 Terrain Rammed . | . . . . . . . . . . . . . Walls Destroyed . | . . . . . . . . . . . . . Machines Disabled . | . . . . . . . . . . . . . Actions | -11 -10 -10 -9 -9 -9 -7 -7 -7 -7 -7 -7 -7 --------- Run | Yrd Mat Min Mat Sto Rec Fac Was Fac Low Low Zio Dee Total 16193 | . 757 713 329 1159 3721 348 899 407 1488 3163 2643 566 Wait 2085 | . 31 4 7 45 634 4 200 79 83 518 261 219 Move 13014 | . 615 682 274 947 2981 326 692 310 1365 2515 2001 306 Hop 7 | . . . . . . . . . 1 6 . . Pick Up 73 | . 7 . 7 20 6 3 . 1 1 27 . 1 Fast Attach 26 | . 2 . . 8 5 4 . . . . 5 2 Attach 17 | . . . 5 3 1 3 . . . . 3 2 Detach 5 | . 1 . . 1 . 1 . . . . 2 . Swap 66 | . 20 2 5 29 5 . . . 1 1 . 3 Drop 78 | . 5 . 5 31 16 2 . 1 1 15 2 . Fire 714 | . 50 18 26 47 29 4 7 16 36 79 369 33 Melee 67 | . 18 . . 23 26 . . . . . . . Ram . | . . . . . . . . . . . . . Kick . | . . . . . . . . . . . . . Crush 38 | . 8 7 . 5 17 1 . . . . . . Escape Stasis . | . . . . . . . . . . . . . Rewire 3 | . . . . . 1 . . . . 2 . . Trap . | . . . . . . . . . . . . . Miscellaneous . | . . . . . . . . . . . . . Route ------- -11/Scrapyard -10/Materials (discovered 4 exits: *Mat x3 / [*Min]) -10/Mines (discovered 3 exits: *Mat x2 / [*Sub]) -9/Materials (discovered 2 exits: Min / *Sto) -9/Storage (discovered 2 exits: [*Mat] / *Rec) -9/Recycling -7/Factory -7/Waste -7/Factory (discovered 2 exits: *Fac / *Low) -7/Lower Caves -7/Lower Caves (discovered 2 exits: *Fac / *Zio) -7/Zion (discovered 2 exits: *Dee / [*Pro]) -7/Deep Caves History --------- Turn | Location | Event 1 | -11/Scrapyard | Discovered new exit (range 0) 1 | -11/Scrapyard | Entered Materials 322 | -10/Materials | Build established: Mutant 397 | -10/Materials | Discovered new exit (range 16) 572 | -10/Materials | Discovered new exit (range 12) 873 | -10/Materials | Discovered new exit (range 8) 1110 | -10/Materials | Discovered new exit (range 16) 1540 | -10/Materials | Entered Mines 1831 | -10/Mines | Discovered new exit (range 9) 2200 | -10/Mines | Core integrity fell below 50% 2310 | -10/Mines | Discovered new exit (range 9) 2548 | -10/Mines | Discovered new exit (range 7) 2632 | -10/Mines | Learned location of 1 exit from Materials 2644 | -10/Mines | Found a hidden stash of uninstalled traps 3088 | -10/Mines | Assisted by bots powering up and referring to "LRC-V3" 3251 | -10/Mines | Entered Materials 3251 | -9/Materials | Accompanied by 3 allies 3251 | -9/Materials | Evolved 2 slots: Propulsion x1, Weapon x1 3252 | -9/Materials | Identified exit to Mines 3593 | -9/Materials | Discovered new exit (range 14) 3775 | -9/Materials | Identified exit to Storage 3847 | -9/Materials | Entered Storage 3847 | -9/Storage | Accompanied by 1 ally 3858 | -9/Storage | Build established: Scavenger-Gunner 4273 | -9/Storage | Discovered new exit (range 14) 4283 | -9/Storage | Build established: Gunner 4287 | -9/Storage | Met a pair of Derelict thieves 4372 | -9/Storage | Assisted by bots powering up and referring to "LRC-V3" 4515 | -9/Storage | Lost 6 allies 4901 | -9/Storage | Garrison activated, responded to threat 4949 | -9/Storage | Core integrity fell below 50% 5106 | -9/Storage | Discovered new exit (range 16) 5118 | -9/Storage | Build established: Commander-Gunner 5481 | -9/Storage | Build established: Mutant 5937 | -9/Storage | Used back door to open Recycling access 5962 | -9/Storage | Entered Recycling 5962 | -9/Recycling | Accompanied by 5 allies 6270 | -9/Recycling | Build established: Gunner 6603 | -9/Recycling | Discovered new exit (range 15) 7255 | -9/Recycling | Scanned before Scraplab entrance 7569 | -9/Recycling | Learned 2 Storage zone layouts 7613 | -9/Recycling | Identified exit to Scraptown 7648 | -9/Recycling | Learned Storage emergency access door positions 7675 | -9/Recycling | Learned Materials trap positions 7691 | -9/Recycling | Learned Storage emergency access door positions 7755 | -9/Recycling | Learned location of Storage (-9) 7803 | -9/Recycling | Learned Storage interactive machine intel 7930 | -9/Recycling | Entered Scraplab 8484 | -9/Recycling | Build established: Mutant 10383 | -9/Recycling | Angered Scraplab inhabitants 10385 | -9/Recycling | Found Prototype Device 10385 | -9/Recycling | Identified Scrap Engine 10586 | -9/Recycling | Build established: Gunner 10896 | -9/Recycling | Build established: Construct 12081 | -9/Recycling | Entered Factory 12081 | -7/Factory | Accompanied by 2 allies 12081 | -7/Factory | Evolved 4 slots: Utility x4 12190 | -7/Factory | Discovered new exit (range 15) 12290 | -7/Factory | Sucked down chute 12290 | -7/Factory | Entered Waste 12291 | -7/Waste | Met a frightened Derelict 12306 | -7/Waste | Warlord forces began an assault 12337 | -7/Waste | Spotted C-40 Crusher 12381 | -7/Waste | Build established: Hacker-Construct 12478 | -7/Waste | Lost 3 allies 12541 | -7/Waste | Spotted C-40 Crusher 12554 | -7/Waste | Allies destroyed C-40 Crusher 12628 | -7/Waste | Discovered new exit (range 15) 12842 | -7/Waste | Identified exit to Factory 12892 | -7/Waste | Entered Factory 12892 | -7/Factory | Accompanied by 12 allies 12904 | -7/Factory | Discovered new exit (range 8) 12911 | -7/Factory | Identified exit to Factory 13058 | -7/Factory | Discovered new exit (range 15) 13068 | -7/Factory | Identified exit to Lower Caves 13179 | -7/Factory | Entered Lower Caves 13179 | -7/Lower Caves | Accompanied by 12 allies 13250 | -7/Lower Caves | Found DCF Scrap (13 items) 13400 | -7/Lower Caves | Attracted the attention of an 0b10 checkpoint 13426 | -7/Lower Caves | Encountered a Warlord checkpoint 13939 | -7/Lower Caves | Discovered new exit (range 8) 13950 | -7/Lower Caves | Identified exit to Lower Caves 14102 | -7/Lower Caves | Entered another Lower Caves area 14102 | -7/Lower Caves | Accompanied by 9 allies 14117 | -7/Lower Caves | Attracted the attention of an 0b10 outpost 14197 | -7/Lower Caves | Discovered exit to Factory (range 5) 14202 | -7/Lower Caves | Lost 5 allies 14287 | -7/Lower Caves | Learned Factory stockpile data 14298 | -7/Lower Caves | Learned 8 Factory zone layouts 14320 | -7/Lower Caves | Learned Factory terminal intel 14433 | -7/Lower Caves | Attracted the attention of an 0b10 checkpoint 14557 | -7/Lower Caves | Discovered new exit (range 8) 14571 | -7/Lower Caves | Encountered a Warlord checkpoint 14982 | -7/Lower Caves | Identified exit to Zion 15479 | -7/Lower Caves | Build established: Construct 17372 | -7/Lower Caves | Entered Zion 17372 | -7/Zion | Accompanied by 3 allies 17403 | -7/Zion | Given the Hacking Drone Bay 17420 | -7/Zion | Acquired unknown access codes intercepted by a Zionite 17435 | -7/Zion | Discovered new exit (range 15) 17507 | -7/Zion | Gained Derelict followers 17600 | -7/Zion | Attacked by Zionites 17600 | -7/Zion | Spotted BR-45O(B) 17600 | -7/Zion | Spotted F4-HA0(B) 17617 | -7/Zion | Destroyed BR-45O(B) 17618 | -7/Zion | Allies destroyed F4-HA0(B) 20094 | -7/Zion | Crushed by falling debris 20458 | -7/Zion | Core integrity fell below 50% 20618 | -7/Zion | Opened final containment barrier to the Deep Caves 20983 | -7/Zion | Discovered new exit (range 5) 20987 | -7/Zion | Saw the warning signs outside the Deep Caves entrance 20990 | -7/Zion | Identified exit to Deep Caves 20991 | -7/Zion | Entered Deep Caves 21564 | -7/Deep Caves | Attacked by Z-Imprinter 21586 | -7/Deep Caves | Core integrity fell below 20% 21592 | -7/Deep Caves | Destroyed Z-Imprinter 21620 | -7/Deep Caves | Lost 5 parts (1p1n1u2w) 21772 | -7/Deep Caves | Z-Facility disabled 21814 | -7/Deep Caves | Destroyed by G4-DR3(z) with Zionite Laser-S Last Messages --------------- 21610_ Acquired 34 matter. 21614_ Acquired Adv. Phase Shifter. 21617_ Acquired Prototype Device. 21617_ Identified Exp. Heat Sink. 21621_ The unstable cave ceiling collapses. 21641_ Acquired 19 matter. 21644_ The unstable cave ceiling collapses. 21664_ Acquired Adv. Phase Shifter. 21665_ The unstable cave ceiling collapses. 21772_ Z-Facility disabled. 21778_ 6X-RLV(z) destroyed. 21778_ Adv. Phase Shifter destroyed. 21780_ Mni. Grenade Launcher destroyed. 21782_ NN-YQV(z) destroyed. 21794_ Prototype Hover Unit melted. 21794_ CC-2UB(z) destroyed. 21809_ Destroyed Prototype Hover Unit. 21811_ Scrap Exoskeleton destroyed. 21811_ Scrap Exoskeleton core remains intact and functional. 21812_ Hvy. Ion Engine destroyed. Map ----- +----------------------------------------------------+ | | | | | | | | | | | | | | | | | | | | | | | | | | | | | | | | | | | | | | | | | | | | | ?????????????????????????????????????????????????? | | ???????????????????????????###############???????? | | ???????????????????????####; ##??????? | | ??????????#????????#???#;@ #????### | | ?????????## ???## ##; ###### # | | ?????????# #" ;; ## # | | ???????? "; | | ???????? !%=zzz | | ???????? !!!*=! | | ???????? !%!% | | ???????? ! | | ????????? """" """""" | | ????????? """""""""""""" | | ?????????? """""""""""""" | | ?????????? """""""""??""" | | ?????????? """????????? | | ??????????? "??????????""" | | ??????????? "??????????""" | | ???????????? "????????????" | | ???????????? ?????????????" | | ?????????????? ??????????????? | | ???????????????? ????????????????? | | ??????????????????? ???????????????????? | | ????????????????????? ????????????????? ? | | ??????????????????????????????????????????? | | ??????????????????????????????????????????? | | ?????????????????????????????????????????? | | ??????????????????????????????????????????? | +----------------------------------------------------+ Best States ------------- Heat Dissipation 60 Energy Generation 18 Energy Capacity 280 Matter Stores 300 Matter Capacity 300 Sight Range 16 Robot Scan Range 15 Terrain Scan Range 18 Terrain Scan Density 135 Additional Mass Support 6 Phase Shifting 15 Evasion (%) 70 Core Analysis 6 Recoil Reduction 3 Particle Charging 15 Offensive Hacking 20 Item Schematics ----------------- None Robot Schematics ------------------ None Fabricated ------------ Nothing Repaired ---------- Nothing Studied --------- None Alien Tech Used ----------------- None Achievements -------------- Monster Challenges ------------ None Game ------ Seed SubatomicMetafiberSlamshotty Manual? 0 Play Time 02:01:24 Cumulative 342.3 hours Start 2026.01.29 @ 19:23:08 End 2026.01.29 @ 22:04:53 Sessions 1 Manual Loads 0 Difficulty Rogue Special Mode None Game No. 421 Rogue 419 Adventurer 2 Explorer 0 Win Type - Total 4 Types 2/0/0/1/1/0/0/0/0/0 Lore% 81 Gallery% 71 Achievement% 62 Wizard Run 0 Options --------- Layout 0 ASCII 0 Keyboard 0 Movement Numpad Keybinds 0 Fullscreen 2 Font 24/Smallcaps Map View 76x50 Zoom Use 0% Tactical HUD 1 Map Filters NONE Filters NONE Steam 1 RUN: 812851b5-ddcc-44e8-ba50-86eb34dd57e2